bitfinex-derivatives/quotes_SOLF0:USTF0_20260207
["timestamp","ask_amount","ask_price","bid_price","bid_amount"]
[1770426305693,20.87599865,86.496,86.427,13.52526066]
[1770426306090,20.87599865,86.496,86.441,13.52526066]
[1770426306298,161.8202,86.575,86.441,13.52526066]
[1770426306299,20.87599865,86.529,86.441,13.52526066]
[1770426306799,20.87599865,86.517,86.46,9.1791112]
[1770426307695,20.87599865,86.517,86.461,13.9630878]
[1770426308498,10.4079,86.532,86.461,13.9630878]
[1770426308698,30.03548805,86.532,86.466,13.99676408]
[1770426308996,9.1791112,86.57,86.466,13.99676408]
[1770426308997,19.62758805,86.528,86.466,13.99676408]
[1770426309395,19.62758805,86.522,86.466,13.99676408]
[1770426310398,19.62758805,86.519,86.466,13.99676408]
[1770426311004,19.62758805,86.516,86.45,13.63143927]
[1770426312602,19.62758805,86.512,86.44,9.1791112]
[1770426312797,19.62758805,86.512,86.42,9.1791112]
[1770426313005,19.62758805,86.509,86.416,13.67758635]
[1770426313199,19.62758805,86.474,86.416,13.67758635]
[1770426313502,19.62758805,86.474,86.398,13.68269806]
[1770426314103,19.62758805,86.462,86.398,13.68269806]
[1770426315704,19.62758805,86.462,86.399,10.4238]
[1770426316694,19.62758805,86.462,86.398,13.68269806]
[1770426317905,19.62758805,86.46,86.382,14.19257654]
[1770426318596,19.62758805,86.449,86.382,14.19257654]
[1770426319799,19.62758805,86.444,86.382,14.19257654]
[1770426319994,19.62758805,86.444,86.365,13.60672155]
[1770426320395,9.1791112,86.45,86.349,21.55432864]
[1770426320396,19.62758805,86.429,86.349,13.61159023]
[1770426320799,19.62758805,86.429,86.332,13.75514373]
[1770426321700,19.62758805,86.405,86.341,13.7602381]
[1770426322702,19.62758805,86.402,86.321,13.76580112]
[1770426322902,19.62758805,86.402,86.261,162.4075]
[1770426322903,19.62758805,86.379,86.288,14.28520003]
[1770426323103,19.62758805,86.362,86.29,10.437]
[1770426323704,19.62758805,86.362,86.294,10.4365]
[1770426323903,19.62758805,86.362,86.3,9.1791112]
[1770426324308,19.62758805,86.362,86.303,14.23504313]
[1770426324907,19.62758805,86.362,86.3,9.1791112]
[1770426324908,19.62758805,86.362,86.306,24.65197402]
[1770426325110,19.62758805,86.362,86.307,14.21697402]
[1770426325910,19.62758805,86.38,86.322,14.19168202]
[1770426327814,19.62758805,86.398,86.329,13.7928531]
[1770426328109,19.62758805,86.398,86.283,162.3668]
[1770426328110,19.62758805,86.398,86.341,13.7928531]
[1770426328714,19.62758805,86.398,86.345,10.4304]
[1770426330709,19.62758805,86.419,86.36,9.1791112]
[1770426331512,19.62758805,86.419,86.36,9.18974018]
[1770426331711,19.62758805,86.436,86.363,13.70210728]
[1770426331916,19.62758805,86.436,86.38,9.18974018]
[1770426332807,19.62758805,86.436,86.381,13.06168935]
[1770426333110,19.62758805,86.436,86.365,13.06168935]
[1770426333413,19.62758805,86.436,86.36,9.18974018]
[1770426335613,19.62758805,86.434,86.351,13.03954424]
[1770426336314,20.5865925,86.417,86.336,10.4314]
[1770426337107,20.5865925,86.404,86.336,10.4314]
[1770426337912,20.5865925,86.404,86.345,10.4303]
[1770426338114,20.5865925,86.439,86.346,13.68884391]
[1770426339411,20.5865925,86.436,86.373,10.4269]
[1770426339611,20.5865925,86.453,86.381,13.79112089]
[1770426340512,20.5865925,86.453,86.392,10.4247]
[1770426340812,20.5865925,86.453,86.381,13.79112089]
[1770426342824,20.5865925,86.453,86.395,10.4242]
[1770426345511,20.5865925,86.453,86.4,10.4237]
[1770426346321,20.5865925,86.477,86.413,13.36615254]
[1770426347025,20.5865925,86.477,86.423,10.4209]
[1770426347527,20.5865925,86.477,86.433,10.4197]
[1770426347821,20.5865925,86.498,86.42,9.18974018]
[1770426348023,20.5865925,86.498,86.417,13.27568146]
[1770426348826,20.5865925,86.494,86.419,10.4213]
[1770426349220,20.5865925,86.494,86.442,10.4185]
[1770426349621,20.5865925,86.494,86.44,9.18974018]
[1770426350024,20.5865925,86.494,86.451,10.4175]
[1770426350227,20.5865925,86.494,86.433,12.90506567]
[1770426350822,20.5865925,86.494,86.4,9.18974018]
[1770426351028,20.5865925,86.494,86.392,12.88201623]
[1770426351528,20.5865925,86.48,86.41,10.4225]
[1770426351722,20.5865925,86.48,86.392,12.88201623]
[1770426352023,10.4156,86.468,86.4,10.4236]
[1770426352224,20.5865925,86.467,86.4,10.4236]
[1770426353932,20.5865925,86.467,86.392,12.88201623]
[1770426353933,10.4163,86.462,86.392,12.88201623]
[1770426354228,20.5865925,86.461,86.392,12.88201623]
[1770426354626,20.5865925,86.458,86.392,12.88201623]
[1770426355023,20.5865925,86.489,86.401,13.16170021]
[1770426355225,20.5865925,86.488,86.404,13.14506778]
[1770426355719,20.5865925,86.488,86.421,13.14506778]
[1770426355923,20.5865925,86.488,86.433,10.4197]
[1770426356122,20.5865925,86.488,86.421,13.14506778]
[1770426356519,20.5865925,86.488,86.433,13.12788934]
[1770426357723,20.5865925,86.488,86.434,10.4195]
[1770426357919,20.5865925,86.488,86.434,23.43746563]
[1770426358119,20.5865925,86.505,86.441,13.01796563]
[1770426358323,20.5865925,86.505,86.442,10.4185]
[1770426359534,20.5865925,86.503,86.441,13.01796563]
[1770426359835,20.5865925,86.503,86.432,10.4198]
[1770426359836,20.5865925,86.498,86.432,10.4198]
[1770426360128,20.5865925,86.498,86.439,10.419]
[1770426360334,20.5865925,86.516,86.441,12.97277939]
[1770426360522,20.5865925,86.516,86.461,12.97277939]
[1770426361528,20.5865925,86.532,86.461,12.97277939]
[1770426362429,20.5865925,86.51,86.444,12.83203141]
[1770426363733,20.5865925,86.5,86.444,12.83203141]
[1770426364732,20.5865925,86.498,86.427,23.70474861]
[1770426364936,20.5865925,86.498,86.406,13.28434861]
[1770426365225,20.5865925,86.498,86.42,9.18974018]
[1770426365530,20.5865925,86.497,86.424,13.2523288]
[1770426365732,20.5865925,86.497,86.441,13.2523288]
[1770426366129,19.68061514,86.528,86.452,10.4173]
[1770426366326,19.68061514,86.528,86.452,23.65357795]
[1770426366628,19.68061514,86.524,86.461,10.4163]
[1770426366833,19.68061514,86.524,86.461,13.42786431]
[1770426367637,19.68061514,86.541,86.48,9.18974018]
[1770426368637,19.68061514,86.541,86.46,9.18974018]
[1770426368832,19.68061514,86.541,86.444,13.3708696]
[1770426369428,20.51775386,86.539,86.444,13.3708696]
[1770426369829,9.18974018,86.54,86.444,13.3708696]
[1770426370141,9.18974018,86.54,86.401,34.71]
[1770426370142,20.51775386,86.538,86.461,12.95389612]
[1770426370337,20.51775386,86.538,86.481,12.94024659]
[1770426371437,20.51775386,86.538,86.495,10.4123]
[1770426371739,20.51775386,86.556,86.501,12.91576534]
[1770426371939,20.51775386,86.575,86.508,12.91518645]
[1770426372239,20.51775386,86.575,86.52,9.18974018]
[1770426372438,20.51775386,86.575,86.521,10.4091]
[1770426372738,20.51775386,86.575,86.522,12.90185561]
[1770426373039,20.51775386,86.596,86.526,13.02587957]
[1770426374136,20.51775386,86.584,86.52,9.18974018]
[1770426375038,20.51775386,86.584,86.51,13.01211124]
[1770426376647,20.51775386,86.584,86.51,23.42251124]
[1770426377037,20.51775386,86.584,86.51,13.01211124]
[1770426377345,20.51775386,86.584,86.52,9.18974018]
[1770426378036,20.51775386,86.584,86.521,12.82167632]
[1770426378946,9.18974018,86.63,86.541,12.81981861]
[1770426378947,20.51775386,86.601,86.541,12.81981861]
[1770426379247,20.51775386,86.601,86.52,22.00955879]
[1770426379541,20.51775386,86.598,86.52,22.00955879]
[1770426379935,20.51775386,86.596,86.522,10.409]
[1770426380642,20.51775386,86.593,86.531,10.4079]
[1770426381237,20.51775386,86.593,86.544,10.4063]
[1770426381834,20.51775386,86.593,86.54,9.18974018]
[1770426382245,20.51775386,86.593,86.546,10.4061]
[1770426382444,20.51775386,86.593,86.52,9.18974018]
[1770426383341,20.51775386,86.581,86.52,9.18974018]
[1770426384148,20.51775386,86.579,86.523,10.4089]
[1770426384845,20.51775386,86.579,86.533,10.4077]
[1770426386235,20.51775386,86.595,86.539,10.407]
[1770426386448,20.51775386,86.595,86.534,12.31585926]
[1770426387341,20.51775386,86.629,86.561,13.05950853]
[1770426387845,20.51775386,86.619,86.561,13.05950853]
[1770426388046,20.51775386,86.619,86.541,13.05892801]
[1770426388751,20.51775386,86.598,86.525,13.04777138]
[1770426388938,20.51775386,86.598,86.483,20.8274]
[1770426388939,20.51775386,86.598,86.501,12.55993319]
[1770426389138,20.51775386,86.588,86.517,12.54879314]
[1770426389343,20.51775386,86.588,86.52,9.18974018]
[1770426390041,20.51775386,86.588,86.52,19.59894018]
[1770426391044,20.51775386,86.586,86.52,9.18974018]
[1770426391246,20.51775386,86.586,86.52,20.89242803]
[1770426391444,20.51775386,86.586,86.52,11.70268785]
[1770426391649,20.51775386,86.605,86.532,11.69237896]
[1770426391849,20.51775386,86.605,86.55,9.15621816]
[1770426392055,20.51775386,86.641,86.571,11.69217413]
[1770426392244,20.51775386,86.639,86.552,11.68201216]
[1770426392952,20.51775386,86.637,86.566,11.94826879]
[1770426393148,20.51775386,86.637,86.571,11.94826879]
[1770426393455,20.51775386,86.637,86.572,11.93757432]
[1770426394842,20.51775386,86.635,86.572,11.93757432]
[1770426395347,20.51775386,86.651,86.576,9.22961535]
[1770426395946,10.3963,86.629,86.576,9.22961535]
[1770426396151,20.51775386,86.651,86.576,9.22961535]
[1770426396956,10.3963,86.629,86.576,9.22961535]
[1770426397252,19.80410558,86.628,86.558,9.20423268]
[1770426397443,19.80410558,86.679,86.571,9.19438568]
[1770426397847,19.80410558,86.679,86.591,9.19475373]
[1770426398054,10.3934,86.652,86.591,9.19475373]
[1770426398248,19.80410558,86.659,86.591,9.19475373]
[1770426398650,10.394,86.648,86.591,9.19475373]
[1770426398956,34.71,86.71,86.591,9.19475373]
[1770426398957,19.80410558,86.677,86.591,9.19475373]
[1770426399159,10.3906,86.676,86.611,10.76059624]
[1770426399357,19.80410558,86.677,86.611,10.76059624]
[1770426400053,19.80410558,86.677,86.61,9.15621816]
[1770426400358,19.80410558,86.677,86.594,10.75075364]
[1770426400554,10.3918,86.666,86.596,10.4]
[1770426400754,19.80410558,86.677,86.597,10.74102336]
[1770426401350,9.15621816,86.7,86.6,11.0655303]
[1770426401351,19.80410558,86.675,86.6,11.0655303]
[1770426401556,19.80410558,86.675,86.589,11.0559478]
[1770426401747,19.80410558,86.675,86.591,11.0559478]
[1770426402261,19.80410558,86.675,86.593,11.04633835]
[1770426402852,30.19480558,86.675,86.612,10.45116538]
[1770426403857,9.15621816,86.72,86.59,9.15621816]
[1770426403858,19.80410558,86.669,86.595,10.44239377]
[1770426404154,9.15621816,86.7,86.578,10.44239377]
[1770426404155,19.80410558,86.659,86.578,10.44239377]
[1770426404954,19.80410558,86.643,86.578,10.44239377]
[1770426405950,19.80410558,86.636,86.578,10.44239377]
[1770426407252,170.74311816,86.7,86.55,9.15621816]
[1770426407253,19.80410558,86.634,86.55,9.15621816]
[1770426407657,19.80410558,86.599,86.54,10.60189715]
[1770426410858,10.3996,86.601,86.54,10.60189715]
[1770426411360,19.80410558,86.6,86.54,10.60189715]
[1770426411660,19.80410558,86.599,86.519,9.99553468]
[1770426412052,19.80410558,86.59,86.519,9.99553468]
[1770426412355,19.80410558,86.619,86.531,9.98720423]
[1770426412662,19.80410558,86.604,86.531,9.98720423]
[1770426413258,19.80410558,86.589,86.531,9.98720423]
[1770426413557,19.80410558,86.589,86.51,9.15621816]
[1770426413756,19.80410558,86.589,86.51,18.38018811]
[1770426413959,19.80410558,86.589,86.511,9.22396995]
[1770426414655,19.80410558,86.586,86.511,9.22396995]
[1770426415266,19.80410558,86.572,86.494,8.56812143]
[1770426416758,19.80410558,86.556,86.494,8.56812143]
[1770426418859,19.80410558,86.552,86.494,8.56812143]
[1770426419261,20.7954,86.617,86.47,9.15621816]
[1770426419262,19.80410558,86.549,86.476,11.83058684]
[1770426419565,19.80410558,86.539,86.444,11.83058684]
[1770426419763,19.80410558,86.539,86.467,10.4156]
[1770426419969,19.80410558,86.539,86.468,11.83035367]
[1770426420170,19.80410558,86.557,86.48,9.15621816]
[1770426420367,19.80410558,86.557,86.481,11.82268875]
[1770426420562,19.80410558,86.557,86.503,11.82268875]
[1770426421462,19.80410558,86.579,86.503,11.82268875]
[1770426421864,19.80410558,86.579,86.517,10.4096]
[1770426422065,19.80410558,86.579,86.46,9.15621816]
[1770426422066,19.80410558,86.579,86.52,9.15621816]
[1770426422262,19.80410558,86.598,86.521,9.78877861]
[1770426423269,19.80410558,86.615,86.541,9.91673944]
[1770426423868,19.80410558,86.669,86.571,9.91684102]
[1770426424064,19.80410558,86.666,86.592,10.4006]
[1770426424264,19.80410558,86.666,86.571,9.91684102]
[1770426424572,19.80410558,86.629,86.571,9.91684102]
[1770426424774,19.80410558,86.629,86.553,20.31447125]
[1770426425161,19.80410558,86.629,86.487,28.38033148]
[1770426425162,19.80410558,86.629,86.561,13.01771673]
[1770426425366,19.80410558,86.659,86.561,13.01771673]
[1770426425573,19.0996023,86.632,86.561,13.01771673]
[1770426426777,19.0996023,86.65,86.581,13.03916634]
[1770426428473,19.0996023,86.65,86.574,10.4027]
[1770426428678,19.0996023,86.65,86.564,12.34690174]
[1770426429278,19.52375142,86.639,86.544,11.1741751]
[1770426430678,19.52375142,86.625,86.545,10.4062]
[1770426430984,19.52375142,86.619,86.521,11.73100494]
[1770426431482,19.52375142,86.609,86.534,10.4076]
[1770426433280,19.52375142,86.607,86.525,12.07152222]
[1770426434380,19.52375142,86.607,86.529,12.06582869]
[1770426435382,19.52375142,86.605,86.529,12.06582869]
[1770426436480,19.52375142,86.605,86.54,9.15621816]
[1770426436681,19.52375142,86.605,86.541,11.70891826]
[1770426437485,19.52375142,86.605,86.54,9.15621816]
[1770426437486,19.52375142,86.605,86.545,11.61675644]
[1770426438480,19.52375142,86.625,86.562,11.61057496]
[1770426438681,19.52375142,86.625,86.52,9.15621816]
[1770426438682,19.52375142,86.644,86.581,11.61057496]
[1770426439690,19.52375142,86.642,86.581,11.61057496]
[1770426439883,19.52375142,86.639,86.557,11.27390833]
[1770426440083,19.52375142,86.609,86.539,11.27390833]
[1770426440590,19.52375142,86.609,86.52,9.15621816]
[1770426440591,19.52375142,86.609,86.521,11.26804453]
[1770426441184,19.52375142,86.603,86.53,10.408]
[1770426441387,19.52375142,86.603,86.53,21.78956613]
[1770426441590,9.15621816,86.62,86.53,21.78956613]
[1770426441591,19.52375142,86.601,86.53,21.78956613]
[1770426441780,19.52375142,86.601,86.541,11.3814295]
[1770426443695,19.52375142,86.601,86.541,21.7881295]
[1770426444992,19.52375142,86.601,86.55,11.5266346]
[1770426445190,10.3975,86.618,86.55,11.5266346]
[1770426445191,19.52375142,86.617,86.55,11.5266346]
[1770426445895,19.52375142,86.614,86.551,10.4054]
[1770426446294,19.52375142,86.614,86.551,21.9203676]
[1770426446995,19.52375142,86.614,86.558,11.403297]
[1770426449587,19.52375142,86.631,86.558,11.403297]
[1770426450700,19.52375142,86.631,86.572,10.4029]
[1770426450898,19.52375142,86.631,86.558,11.403297]
[1770426451604,19.52375142,86.627,86.561,11.49892435]
[1770426452003,19.52375142,86.627,86.578,10.4022]
[1770426452206,19.52375142,86.627,86.576,11.49877992]
[1770426452406,19.52375142,86.627,86.56,11.49426657]
[1770426452701,19.52375142,86.627,86.541,11.49426657]
[1770426453404,19.52375142,86.626,86.559,11.43206786]
[1770426454305,19.52375142,86.626,86.576,10.4025]
[1770426454602,19.52375142,86.626,86.577,11.4266684]
[1770426455805,19.52375142,86.626,86.579,10.4021]
[1770426456807,19.52375142,86.626,86.579,21.8228615]
[1770426457110,19.52375142,86.626,86.583,10.4016]
[1770426457301,19.52375142,86.626,86.58,11.42238997]
[1770426458002,19.92991578,86.642,86.58,11.42238997]
[1770426458701,19.92991578,86.642,86.592,10.4005]
[1770426459299,19.92991578,86.642,86.6,10.3996]
[1770426460111,19.92991578,86.66,86.606,10.3989]
[1770426460301,19.92991578,86.66,86.601,11.39721572]
[1770426461204,19.92991578,86.66,86.591,11.33765499]
[1770426461702,19.92991578,86.66,86.612,10.3982]
[1770426462907,19.92991578,86.66,86.623,10.3968]
[1770426465704,19.92991578,86.66,86.631,10.3959]
[1770426466113,19.92991578,86.675,86.631,10.3959]
[1770426467815,19.92991578,86.699,86.632,11.3757608]
[1770426468216,19.92991578,86.697,86.611,11.37140736]
[1770426469418,19.92991578,86.675,86.608,10.3986]
[1770426470718,19.92991578,86.67,86.608,10.3986]
[1770426471115,19.92991578,86.67,86.598,10.3999]
[1770426471315,19.92991578,86.669,86.598,10.3999]
[1770426471517,19.92991578,86.658,86.594,11.36055058]
[1770426471818,19.92991578,86.658,86.578,11.55376358]
[1770426472024,19.92991578,86.658,86.586,10.4013]
[1770426472923,19.92991578,86.645,86.594,10.4003]
[1770426473324,19.92991578,86.645,86.578,11.55376358]
[1770426473823,19.92991578,86.645,86.593,10.4004]
[1770426475414,19.92991578,86.645,86.601,10.3994]
[1770426475615,19.92991578,86.645,86.592,11.44847302]
[1770426475927,19.92991578,86.661,86.592,11.44847302]
[1770426476427,19.92991578,86.661,86.571,11.44447574]
[1770426476630,19.92991578,86.659,86.571,11.44447574]
[1770426477423,19.92991578,86.647,86.583,10.4017]
[1770426477625,19.92991578,86.647,86.571,11.44447574]
[1770426478227,19.92991578,86.647,86.599,10.3998]
[1770426480330,19.92991578,86.647,86.607,10.3988]
[1770426481128,19.92991578,86.662,86.616,10.3977]
[1770426481334,19.92991578,86.662,86.602,11.44926756]
[1770426482023,19.92991578,86.662,86.624,10.3967]
[1770426482232,19.92991578,86.662,86.602,11.44926756]
[1770426482932,19.92991578,86.662,86.619,10.3973]
[1770426484432,19.92991578,86.659,86.599,10.3997]
[1770426484831,19.92991578,86.659,86.585,11.35301539]
[1770426485029,19.92991578,86.659,86.608,10.3987]
[1770426486132,19.92991578,86.659,86.607,10.3988]
[1770426486926,19.92991578,86.659,86.607,11.5348493]
[1770426487126,19.92991578,86.659,86.571,11.5348493]
[1770426488525,20.2666262,86.642,86.541,21.28524861]
[1770426488725,9.14946046,86.69,86.53,9.14946046]
[1770426488726,20.2666262,86.629,86.53,9.14946046]
[1770426488927,20.2666262,86.595,86.525,12.18702355]
[1770426490438,20.2666262,86.595,86.527,10.4083]
[1770426490638,20.2666262,86.595,86.528,12.18071333]
[1770426490837,20.2666262,86.595,86.51,12.1877771]
[1770426491029,20.2666262,86.577,86.495,12.1877771]
[1770426491636,20.2666262,86.575,86.5,10.4116]
[1770426491837,20.2666262,86.575,86.495,12.1877771]
[1770426492631,20.2666262,86.558,86.495,12.1877771]
[1770426492835,20.2666262,86.558,86.484,11.96337606]
[1770426493238,20.2666262,86.558,86.491,10.4127]
[1770426494737,20.2666262,86.558,86.492,11.95817516]
[1770426494940,9.14946046,86.58,86.44,9.14946046]
[1770426494941,9.14946046,86.54,86.44,9.14946046]
[1770426495135,20.2666262,86.519,86.431,11.99345184]
[1770426495442,20.2666262,86.519,86.458,11.99060689]
[1770426495938,20.2666262,86.579,86.47,9.14946046]
[1770426496136,20.2666262,86.579,86.471,11.9904809]
[1770426497230,10.4028,86.574,86.471,11.9904809]
[1770426497435,20.2666262,86.579,86.491,12.48073541]
[1770426497843,20.2666262,86.579,86.51,9.14946046]
[1770426498042,20.2666262,86.579,86.53,9.14946046]
[1770426498242,20.2666262,86.579,86.51,9.14946046]
[1770426501240,20.2666262,86.579,86.51,19.55986046]
[1770426501446,20.2666262,86.579,86.511,11.51176622]
[1770426502138,20.2666262,86.579,86.53,9.14946046]
[1770426502541,20.2666262,86.579,86.51,9.14946046]
[1770426503640,20.2666262,86.577,86.51,9.14946046]
[1770426505743,20.2666262,86.577,86.493,11.50895578]
[1770426506852,20.2666262,86.539,86.441,11.71272892]
[1770426507051,20.2666262,86.539,86.44,9.14946046]
[1770426507252,20.2666262,86.51,86.44,9.14946046]
[1770426508040,20.2666262,86.507,86.423,11.71272892]
[1770426509647,20.2666262,86.488,86.423,11.71272892]
[1770426510153,20.2666262,86.519,86.44,21.49950182]
[1770426510352,20.2666262,86.519,86.441,12.35004136]
[1770426511850,20.2666262,86.511,86.441,12.35004136]
[1770426512845,20.2666262,86.509,86.441,12.35004136]
[1770426514049,10.411,86.506,86.441,12.35004136]
[1770426514249,20.2666262,86.505,86.441,12.35004136]
[1770426515755,18.8825646,86.503,86.441,12.35004136]
[1770426517360,18.8825646,86.501,86.441,12.35004136]
[1770426517857,10.4132,86.488,86.441,12.35004136]
[1770426518058,29.2957646,86.488,86.441,12.35004136]
[1770426518450,18.8825646,86.485,86.425,11.92834594]
[1770426519259,10.415,86.473,86.425,11.92834594]
[1770426519452,18.8825646,86.472,86.425,11.92834594]
[1770426520251,10.4154,86.469,86.425,11.92834594]
[1770426522667,10.4166,86.46,86.425,11.92834594]
[1770426525666,18.8825646,86.472,86.425,11.92834594]
[1770426529763,18.8825646,86.472,86.37,19.65768834]
[1770426529966,18.8825646,86.469,86.38,28.83008194]
[1770426530374,18.8825646,86.469,86.381,19.65768834]
[1770426531676,18.8825646,86.449,86.361,19.65768834]
[1770426532068,18.8825646,86.446,86.361,19.65768834]
[1770426535373,18.8825646,86.487,86.39,19.65768834]
[1770426536671,18.8825646,86.487,86.399,19.65768834]
[1770426538973,18.8825646,86.487,86.401,19.65768834]
[1770426539573,10.4134,86.486,86.401,19.65768834]
[1770426539773,18.8825646,86.485,86.401,19.65768834]
[1770426540482,18.8825646,86.485,86.421,19.65768834]
[1770426541377,18.8825646,86.485,86.42,9.1723936]
[1770426541378,18.8825646,86.515,86.441,19.65768834]
[1770426542077,18.8825646,86.489,86.421,19.65768834]
[1770426542879,18.8825646,86.509,86.421,19.65768834]
[1770426544076,18.8825646,86.509,86.441,19.65768834]
[1770426544280,20.8058,86.573,86.424,19.65768834]
[1770426544281,18.8825646,86.497,86.424,19.65768834]
[1770426544476,18.8825646,86.497,86.4,9.1723936]
[1770426544477,18.8825646,86.489,86.401,19.65768834]
[1770426545380,18.8825646,86.484,86.401,19.65768834]
[1770426545976,20.68703415,86.473,86.401,19.65768834]
[1770426547077,20.68703415,86.464,86.401,19.65768834]
[1770426547875,9.1723936,86.51,86.401,19.65768834]
[1770426547876,20.68703415,86.479,86.401,19.65768834]
[1770426548878,20.68703415,86.479,86.411,18.87092739]
[1770426552683,9.1723936,86.45,86.376,18.87092739]
[1770426552985,20.68703415,86.449,86.376,18.87092739]
[1770426553587,9.1723936,86.45,86.376,18.87092739]
[1770426553588,20.68703415,86.431,86.376,18.87092739]
[1770426554183,10.4209,86.424,86.376,18.87092739]
[1770426554379,20.68703415,86.431,86.376,18.87092739]
[1770426555386,10.4206,86.427,86.376,18.87092739]
[1770426557993,20.68703415,86.431,86.376,18.87092739]
[1770426557994,10.4216,86.418,86.376,18.87092739]
[1770426558695,20.68703415,86.431,86.376,18.87092739]
[1770426559092,20.68703415,86.431,86.36,18.87092739]
[1770426559292,20.68703415,86.421,86.36,18.87092739]
[1770426561696,20.68703415,86.421,86.362,18.87092739]
[1770426562794,20.68703415,86.421,86.365,19.75314382]
[1770426563400,20.68703415,86.421,86.368,19.75314382]
[1770426564902,20.68703415,86.421,86.371,19.75314382]
[1770426565102,19.49521135,86.457,86.371,19.75314382]
[1770426565601,19.49521135,86.457,86.391,10.4248]
[1770426565801,19.49521135,86.457,86.392,19.75314382]
[1770426566397,19.49521135,86.496,86.419,10.4214]
[1770426566698,19.49521135,86.496,86.4,9.1723936]
[1770426566699,19.49521135,86.496,86.42,19.75314382]
[1770426566894,19.49521135,86.496,86.424,10.4207]
[1770426567093,19.49521135,86.479,86.382,19.75314382]
[1770426567701,19.49521135,86.466,86.384,10.4256]
[1770426568402,19.49521135,86.459,86.382,19.75314382]
[1770426569696,10.4168,86.458,86.382,19.75314382]
[1770426569898,34.69,86.493,86.364,30.18114382]
[1770426569899,19.49521135,86.439,86.364,30.18114382]
[1770426570102,19.49521135,86.439,86.364,19.75314382]
[1770426570292,19.49521135,86.439,86.341,19.75314382]
[1770426570692,10.4198,86.433,86.341,19.75314382]
[1770426570896,9.1723936,86.44,86.341,19.75314382]
[1770426570897,19.49521135,86.432,86.341,19.75314382]
[1770426571695,10.4203,86.429,86.341,19.75314382]
[1770426571896,19.49521135,86.428,86.341,19.75314382]
[1770426572492,19.49521135,86.425,86.341,19.75314382]
[1770426572806,19.49521135,86.419,86.341,19.75314382]
[1770426573706,10.4219,86.415,86.341,19.75314382]
[1770426574006,19.49521135,86.414,86.341,19.75314382]
[1770426575295,10.4222,86.413,86.341,19.75314382]
[1770426575497,10.4222,86.413,86.28,37.55272508]
[1770426575498,19.49521135,86.399,86.321,19.75314382]
[1770426576202,19.49521135,86.399,86.341,19.71303041]
[1770426576600,21.00569975,86.43,86.361,19.71303041]
[1770426578602,21.00569975,86.462,86.381,19.71303041]
[1770426579004,21.00569975,86.462,86.34,9.19707546]
[1770426579005,21.00569975,86.462,86.401,19.71303041]
[1770426580210,21.00569975,86.462,86.381,19.71303041]
[1770426581297,21.00569975,86.459,86.381,19.71303041]
[1770426581606,21.00569975,86.443,86.381,19.71303041]
[1770426583307,21.00569975,86.443,86.361,19.71303041]
[1770426583602,21.00569975,86.443,86.289,34.69]
[1770426583603,21.00569975,86.419,86.329,19.71303041]
[1770426584200,21.00569975,86.419,86.255,28.38033148]
[1770426584201,21.00569975,86.419,86.341,19.71303041]
[1770426585604,21.00569975,86.417,86.341,19.71303041]
[1770426589606,21.00569975,86.415,86.341,19.71303041]
[1770426591112,21.00569975,86.413,86.341,19.71303041]
[1770426591713,21.00569975,86.43,86.361,19.71303041]
[1770426591913,21.00569975,86.447,86.361,19.71303041]
[1770426592712,21.00569975,86.443,86.361,19.71303041]
[1770426593103,21.00569975,86.42,86.344,19.71303041]
[1770426593406,21.00569975,86.42,86.35,9.19707546]
[1770426593614,21.00569975,86.42,86.351,19.71303041]
[1770426594214,21.00569975,86.42,86.354,19.71303041]
[1770426594413,10.4192,86.438,86.371,19.71303041]
[1770426594414,21.00569975,86.435,86.371,19.71303041]
[1770426595002,21.00569975,86.433,86.371,19.71303041]
[1770426595811,21.00569975,86.425,86.371,19.71303041]
[1770426596317,21.00569975,86.422,86.351,19.71303041]
[1770426597810,21.00569975,86.416,86.351,19.71303041]
[1770426598417,21.00569975,86.406,86.331,19.71303041]
[1770426598714,21.00569975,86.399,86.316,19.71303041]
[1770426599719,21.00569975,86.375,86.316,19.71303041]
[1770426599907,21.00569975,86.419,86.321,19.71303041]
[1770426600308,21.00569975,86.396,86.321,19.71303041]
[1770426600907,21.00569975,86.392,86.321,19.71303041]
[1770426601718,21.00569975,86.39,86.321,19.71303041]
[1770426601915,21.00569975,86.39,86.301,19.71303041]
[1770426602513,9.19707546,86.4,86.301,19.71303041]
[1770426602514,21.00569975,86.371,86.301,19.71303041]
[1770426603821,9.19707546,86.4,86.301,19.71303041]
[1770426603822,21.00569975,86.368,86.301,19.71303041]
[1770426604616,10.4282,86.364,86.301,19.71303041]
[1770426605720,30.24290684,86.364,86.301,19.71303041]
[1770426605915,10.427,86.373,86.301,19.71303041]
[1770426606114,10.427,86.373,86.3,9.19707546]
[1770426606115,10.427,86.373,86.321,19.68874803]
[1770426606724,19.81470684,86.4,86.321,19.68874803]
[1770426607419,9.19707546,86.41,86.321,19.68874803]
[1770426607420,10.4263,86.379,86.321,19.68874803]
[1770426607621,19.81470684,86.378,86.321,19.68874803]
[1770426608828,10.4286,86.36,86.321,19.68874803]
[1770426609130,19.50684467,86.364,86.301,19.4302353]